bitfinex-derivatives/quotes_BTCF0:USTF0_20251213
["timestamp","ask_amount","ask_price","bid_price","bid_amount"]
[1765645861770,0.17481537,90062.0,90061.0,0.46494]
[1765645865575,0.09612537,90062.0,90061.0,0.46494]
[1765645865889,0.17481537,90062.0,90061.0,0.46494]
[1765645867884,0.16371287,90062.0,90061.0,0.46494]
[1765645868084,0.08502287,90062.0,90061.0,0.46494]
[1765645868279,0.00551287,90062.0,90061.0,0.4760426]
[1765645868583,0.16502937,90065.0,90064.0,0.15404]
[1765645868885,0.85826937,90065.0,90064.0,0.15404]
[1765645869086,0.86393468,90065.0,90064.0,0.48984]
[1765645870088,0.86393468,90065.0,90064.0,0.49184]
[1765645870089,0.78416751,90065.0,90064.0,0.49184]
[1765645871182,0.78416751,90065.0,90064.0,0.49284]
[1765645872592,0.88369769,90065.0,90064.0,0.49284]
[1765645873181,0.78416751,90065.0,90064.0,0.49284]
[1765645873881,0.79869151,90065.0,90064.0,0.49284]
[1765645874088,0.69890531,90065.0,90064.0,0.49284]
[1765645879397,0.69890531,90065.0,90064.0,0.85364]
[1765645882184,0.69890531,90065.0,90064.0,0.89349]
[1765645885394,0.76812531,90065.0,90064.0,0.89349]
[1765645889496,0.83692531,90065.0,90064.0,0.89349]
[1765645890001,0.76812531,90065.0,90064.0,0.89349]
[1765645892408,0.83692531,90065.0,90064.0,0.89349]
[1765645895596,0.69890531,90065.0,90064.0,0.89349]
[1765645895792,0.76812531,90065.0,90064.0,0.89349]
[1765645896601,0.00566531,90065.0,90064.0,0.89349]
[1765645896807,0.1491211,90074.0,90073.0,0.1533512]
[1765645897001,0.1491211,90074.0,90073.0,0.5141512]
[1765645897202,0.1491211,90074.0,90073.0,0.9118512]
[1765645897500,0.15457941,90074.0,90073.0,0.9118512]
[1765645899008,0.14347831,90074.0,90073.0,0.9118512]
[1765645906522,0.07467831,90074.0,90073.0,0.9118512]
[1765645907105,0.14347831,90074.0,90073.0,0.9118512]
[1765645915018,0.14347831,90074.0,90073.0,0.5510512]
[1765645915222,0.14347831,90074.0,90073.0,0.9118512]
[1765645921335,0.24326451,90074.0,90073.0,0.9118512]
[1765645922536,0.3230678,90074.0,90073.0,0.9118512]
[1765645922731,0.2232816,90074.0,90073.0,0.9118512]
[1765645924133,0.14347831,90074.0,90073.0,0.9118512]
[1765645937463,0.14347831,90074.0,90073.0,0.5510512]
[1765645937655,0.14347831,90074.0,90073.0,0.9118512]
[1765645938663,0.14347831,90074.0,90073.0,0.5510512]
[1765645938964,0.07467831,90074.0,90073.0,0.9118512]
[1765645941664,0.13970831,90074.0,90073.0,0.9118512]
[1765645945066,0.13970831,90074.0,90073.0,0.5510512]
[1765645945256,0.13970831,90074.0,90073.0,0.9118512]
[1765645946856,0.07467831,90074.0,90073.0,0.9118512]
[1765645947765,0.07467831,90074.0,90073.0,0.5510512]
[1765645947967,0.07467831,90074.0,90073.0,0.9118512]
[1765645948857,0.00545831,90074.0,90073.0,0.9118512]
[1765645949062,0.8594962,90082.0,90081.0,0.12396]
[1765645949263,0.93227727,90082.0,90081.0,0.12396]
[1765645949658,0.93227727,90082.0,90081.0,0.51416]
[1765645950972,0.93427727,90082.0,90081.0,0.51416]
[1765645960374,0.93427727,90082.0,90081.0,0.5252602]
[1765645960584,0.83449107,90082.0,90081.0,0.5252602]
[1765645961780,0.002,90082.0,90081.0,0.5252602]
[1765645961975,0.002,90082.0,90081.0,0.91668656]
[1765645962470,0.002,90082.0,90081.0,0.8860602]
[1765645963078,0.07135089,90085.0,90081.0,0.8860602]
[1765645963279,0.02149935,90085.0,90084.0,0.16172]
[1765645963475,0.13372,90095.0,90094.0,0.14999]
[1765645963674,0.13913042,90095.0,90094.0,0.14999]
[1765645964279,0.13913042,90095.0,90094.0,0.50479]
[1765645965185,0.14113042,90095.0,90094.0,0.50479]
[1765645966784,0.14313042,90095.0,90094.0,0.50479]
[1765645967083,0.00941042,90095.0,90094.0,0.50479]
[1765645967486,0.07588042,90095.0,90094.0,0.50479]
[1765645968786,0.14313042,90095.0,90094.0,0.50479]
[1765645969982,0.00941042,90095.0,90094.0,0.50479]
[1765645972591,0.004,90095.0,90094.0,0.50479]
[1765645975084,0.004,90095.0,90094.0,0.55787571]
[1765645975390,0.05970527,90099.0,90098.0,0.1801081]
[1765645975598,0.12197527,90099.0,90098.0,0.1801081]
[1765645976994,0.05970527,90099.0,90098.0,0.1801081]
[1765645977893,0.05970527,90099.0,90098.0,0.1811081]
[1765645978289,0.75282527,90100.0,90099.0,0.13075]
[1765645978692,0.69312,90100.0,90099.0,0.13075]
[1765645978886,0.81859,90100.0,90099.0,0.13075]
[1765645979086,0.81859,90100.0,90099.0,0.47775]
[1765645979398,0.81859,90100.0,90099.0,0.13075]
[1765645979696,0.75539,90100.0,90099.0,0.52685]
[1765645979899,0.75539,90100.0,90099.0,0.50715]
[1765645980289,0.75539,90100.0,90099.0,0.52345]
[1765645980698,0.81859,90100.0,90099.0,0.52345]
[1765645980898,0.81859,90100.0,90099.0,0.52445]
[1765645981393,0.75539,90100.0,90099.0,0.52445]
[1765645982097,0.81859,90100.0,90099.0,0.52445]
[1765645982981,0.69312,90100.0,90099.0,0.52445]
[1765645983600,0.75539,90100.0,90099.0,0.52445]
[1765645984095,0.00016647,90104.0,90103.0,0.1418475]
[1765645984294,0.00016647,90104.0,90103.0,0.5026475]
[1765645984486,0.00016647,90104.0,90103.0,0.8603475]
[1765645985188,0.07960695,90130.0,90117.0,0.03826]
[1765645985397,0.12547,90131.0,90130.0,0.13075]
[1765645985596,0.12547,90131.0,90130.0,0.49155]
[1765645985797,0.12547,90131.0,90130.0,0.78315]
[1765645987700,0.12647,90131.0,90130.0,0.78315]
[1765645988399,0.12547,90131.0,90130.0,0.78315]
[1765645989389,0.12547,90131.0,90130.0,0.42235]
[1765645989589,0.12547,90131.0,90130.0,0.2916]
[1765645989787,0.12547,90122.0,90121.0,0.13091647]
[1765645990201,0.12547,90122.0,90121.0,0.54801647]
[1765645991789,0.12547,90122.0,90121.0,0.53971647]
[1765645992302,0.12547,90122.0,90121.0,0.40896647]
[1765645992703,0.12547,90122.0,90121.0,0.00016647]
[1765645993395,0.12547,90122.0,90121.0,0.13091647]
[1765645993800,0.12547,90122.0,90121.0,0.56891647]
[1765645994098,0.12547,90122.0,90121.0,0.59461647]
[1765645994299,0.12647,90122.0,90121.0,0.59461647]
[1765645994998,0.12747,90122.0,90121.0,0.59461647]
[1765645995302,0.12747,90122.0,90121.0,0.60571177]
[1765645995900,0.12647,90122.0,90121.0,0.60571177]
[1765645997691,0.001,90122.0,90121.0,0.60571177]
[1765645998103,0.2252562,90131.0,90130.0,0.1418441]
[1765645998497,0.12547,90131.0,90130.0,0.5335441]
[1765645998694,0.12547,90131.0,90130.0,0.5128441]
[1765646001308,0.12547,90131.0,90130.0,0.50175]
[1765646001505,0.12547,90131.0,90130.0,0.371]
[1765646001909,0.12088,90122.0,90121.0,0.12399647]
[1765646002107,0.20043022,90122.0,90121.0,0.12399647]
[1765646002509,0.12088,90122.0,90121.0,0.61119647]
[1765646003308,0.12088,90122.0,90121.0,0.61219647]
[1765646003505,0.18054965,90122.0,90121.0,0.61219647]
[1765646005629,0.12088,90122.0,90121.0,0.61219647]
[1765646011925,0.12088,90122.0,90121.0,0.61319647]
[1765646029625,0.07955022,90123.0,90122.0,0.1321751]
[1765646029840,0.07955022,90126.0,90125.0,0.1321748]
[1765646030036,3.31e-06,90129.0,90128.0,0.1321744]
[1765646030246,0.00016647,90140.0,90137.0,0.0138733]
[1765646030452,0.00016647,90140.0,90139.0,0.36356]
[1765646030935,0.00016647,90140.0,90139.0,1.00636]
[1765646031941,0.00016647,90140.0,90139.0,1.00736]
[1765646032836,0.09677647,90140.0,90139.0,1.701]
[1765646033032,0.03610647,90140.0,90139.0,1.701]
[1765646033238,0.03610647,90140.0,90139.0,1.702]
[1765646035847,0.00016647,90140.0,90139.0,1.702]
[1765646037327,0.00016647,90140.0,90139.0,1.3412]
[1765646037532,0.00016647,90140.0,90139.0,1.702]
[1765646038631,0.00016647,90140.0,90139.0,1.3412]
[1765646038835,0.00016647,90140.0,90139.0,1.702]
[1765646039336,0.04238647,90140.0,90139.0,1.702]
[1765646039842,0.04238647,90140.0,90139.0,1.00836]
[1765646040042,0.04238647,90140.0,90139.0,1.70188]
[1765646040843,0.18368647,90140.0,90139.0,1.70188]
[1765646041139,0.18368647,90140.0,90139.0,1.70184]
[1765646041539,0.18368647,90140.0,90139.0,1.7018]
[1765646045350,0.11359647,90140.0,90139.0,1.7018]
[1765646045953,0.18368647,90140.0,90139.0,1.7018]
[1765646046847,0.11359647,90140.0,90139.0,1.7018]
[1765646047042,0.18368647,90140.0,90139.0,1.7018]
[1765646047747,0.11359647,90140.0,90139.0,1.7018]
[1765646047943,0.04238647,90140.0,90139.0,1.7018]
[1765646048749,0.00016647,90140.0,90139.0,1.7018]
[1765646048956,0.18368647,90140.0,90139.0,1.7018]
[1765646049555,0.11359647,90140.0,90139.0,1.7018]
[1765646049852,0.04238647,90140.0,90139.0,1.7018]
[1765646051350,0.04238647,90140.0,90139.0,1.00836]
[1765646051651,0.04238647,90140.0,90139.0,1.70168]
[1765646059061,0.04238647,90140.0,90139.0,1.73317895]
[1765646059462,0.11359647,90140.0,90139.0,1.73317895]
[1765646063465,0.18368647,90140.0,90139.0,1.73317895]
[1765646066362,0.18368647,90140.0,90139.0,1.37237895]
[1765646066664,0.18368647,90140.0,90139.0,1.73317895]
[1765646073465,0.18368647,90140.0,90139.0,1.03985895]
[1765646073665,0.18368647,90140.0,90139.0,1.73301895]
[1765646075064,0.18368647,90140.0,90139.0,1.03985895]
[1765646075263,0.18368647,90140.0,90139.0,1.00836]
[1765646075566,0.18368647,90140.0,90139.0,1.019453]
[1765646079862,0.11359647,90140.0,90139.0,1.019453]
[1765646080771,0.04238647,90140.0,90139.0,1.019453]
[1765646081362,0.10681647,90140.0,90139.0,1.019453]
[1765646083162,0.17576647,90140.0,90139.0,1.019453]
[1765646086074,0.10681647,90140.0,90139.0,1.019453]
[1765646086677,0.17576647,90140.0,90139.0,1.019453]
[1765646101687,0.17576647,90140.0,90139.0,1.0056]
[1765646101890,0.17576647,90140.0,90139.0,0.45136]
[1765646102184,0.17576647,90140.0,90139.0,1.3536]
[1765646102185,0.18678322,90140.0,90139.0,1.3536]
[1765646102372,0.83860459,90140.0,90139.0,1.3536]
[1765646102578,0.78352647,90140.0,90139.0,1.3536]
[1765646102778,0.78352647,90140.0,90139.0,0.12188]
[1765646103784,0.78352647,90140.0,90139.0,0.12088]
[1765646104580,0.78352647,90140.0,90139.0,0.11988]
[1765646106784,0.74130647,90140.0,90139.0,0.11988]
[1765646107790,0.82108285,90140.0,90139.0,0.11988]
[1765646108194,0.74130647,90140.0,90139.0,0.61198]
[1765646108490,0.75212621,90140.0,90139.0,0.623073]
[1765646108790,0.00016647,90140.0,90139.0,0.623073]
[1765646113483,2.553e-05,90140.0,90139.0,0.623073]
[1765646130705,2.553e-05,90140.0,90139.0,0.983873]
[1765646131807,2.553e-05,90140.0,90139.0,1.676913]
[1765646132515,0.07979527,90140.0,90139.0,1.676913]
[1765646133799,0.13934226,90158.0,90157.0,0.13739]
[1765646134108,0.0055497,90158.0,90157.0,0.13739]
[1765646134313,0.13611,90158.0,90157.0,0.82869]
[1765646135214,0.13711,90158.0,90157.0,0.8397808]
[1765646137207,0.13811,90158.0,90157.0,0.8397808]
[1765646138016,0.1195806,90158.0,90157.0,0.8397808]
[1765646139823,0.002,90158.0,90157.0,0.8397808]
[1765646140114,0.00016647,90167.0,90166.0,0.1484797]
[1765646140317,0.00016647,90167.0,90166.0,0.5092797]
[1765646140515,0.00016647,90167.0,90166.0,1.1718797]
[1765646142011,0.00116647,90167.0,90166.0,1.1718797]
[1765646142812,0.00216647,90167.0,90166.0,1.1718797]
[1765646143515,0.00116647,90167.0,90166.0,1.1718797]
[1765646143816,0.00216647,90167.0,90166.0,1.1718797]
[1765646150227,0.06961647,90167.0,90166.0,1.1718797]
[1765646150423,0.13827647,90167.0,90166.0,1.16079]
[1765646151531,0.13827647,90167.0,90166.0,0.49819]
[1765646154720,0.13827647,90167.0,90166.0,0.13739]
[1765646159925,0.13827647,90167.0,90166.0,0.78329]
[1765646160632,0.13827647,90167.0,90166.0,0.13739]
[1765646163428,0.20082,90162.0,90161.0,0.15167]
[1765646173423,0.15435,90162.0,90161.0,0.15167]
[1765646175728,0.09960773,90166.0,90161.0,0.15167]
[1765646175939,0.15435,90166.0,90165.0,0.15167]
[1765646176632,0.15435,90166.0,90165.0,0.50867]
[1765646176942,0.25395773,90166.0,90165.0,0.52537]
[1765646177737,0.25495773,90166.0,90165.0,0.52537]
[1765646178141,0.25595773,90166.0,90165.0,0.52537]
[1765646178943,0.15635,90166.0,90165.0,0.52537]
[1765646179241,0.25616004,90166.0,90165.0,0.52537]
[1765646179442,0.15635,90166.0,90165.0,0.52537]
[1765646200458,0.15635,90166.0,90165.0,0.5364598]
[1765646200859,0.15635,90166.0,90165.0,0.52537]
[1765646202261,0.15635,90166.0,90165.0,0.3737]
[1765646202457,0.15635,90166.0,90165.0,0.27420073]
[1765646202656,0.20052915,90166.0,90165.0,0.23193451]
[1765646202857,0.13419,90149.0,90148.0,0.13601647]
[1765646204267,0.21398109,90149.0,90148.0,0.47971647]
[1765646204464,0.21398109,90149.0,90148.0,0.48171647]
[1765646205057,0.21398109,90149.0,90148.0,0.53661647]
[1765646205259,0.13419,90149.0,90148.0,0.53661647]
[1765646206667,0.13419,90149.0,90148.0,0.53461647]
[1765646207767,0.13419,90149.0,90148.0,0.54570837]
[1765646207971,0.07979109,90152.0,90151.0,0.13585]
[1765646208153,0.07979109,90153.0,90151.0,0.13585]
[1765646208367,0.07979109,90153.0,90152.0,0.13585]
[1765646208679,0.21398109,90153.0,90152.0,0.13585]
[1765646210078,0.21398109,90153.0,90152.0,0.49195]
[1765646210767,0.07979109,90153.0,90152.0,0.49195]
[1765646210964,0.00540909,90154.0,90153.0,0.1469413]
[1765646211169,0.77267109,90156.0,90153.0,0.1469413]
[1765646211170,0.77267109,90156.0,90155.0,0.13585]
[1765646211569,0.84226109,90156.0,90155.0,0.40455]
[1765646211874,0.8477987,90156.0,90155.0,0.40455]
[1765646212075,0.9123987,90156.0,90155.0,0.40455]
[1765646212580,0.83260761,90156.0,90155.0,0.40455]
[1765646213472,0.83360761,90156.0,90155.0,0.40455]
[1765646214480,0.83460761,90156.0,90155.0,0.40455]
[1765646215879,0.14172761,90156.0,90155.0,0.40455]
[1765646218478,0.00753761,90156.0,90155.0,0.40455]
[1765646219074,0.002,90156.0,90155.0,0.40455]
[1765646222583,0.00016647,90167.0,90166.0,0.14187]
[1765646222788,0.10521417,90167.0,90166.0,0.14187]
[1765646222990,0.10521417,90167.0,90166.0,0.45537]
[1765646223492,0.00016647,90167.0,90166.0,0.45537]
[1765646223881,0.00116647,90167.0,90166.0,0.45537]
[1765646224081,0.00216647,90167.0,90166.0,0.45537]
[1765646225380,0.08185957,90167.0,90166.0,0.45537]
[1765646225781,0.00216647,90167.0,90166.0,0.45537]
[1765646226092,0.00116647,90167.0,90166.0,0.45537]
[1765646226296,0.00216647,90167.0,90166.0,0.45537]
[1765646229885,0.14875647,90167.0,90166.0,0.45537]
[1765646232288,0.14875647,90167.0,90166.0,0.81617]
[1765646232500,0.07430647,90167.0,90166.0,0.81617]
[1765646232790,0.00216647,90167.0,90166.0,0.81617]
[1765646237990,0.14875647,90167.0,90166.0,0.81617]
[1765646238904,0.14875647,90167.0,90166.0,0.45537]
[1765646240496,0.14875647,90167.0,90166.0,0.81617]
[1765646250819,0.14775647,90167.0,90166.0,0.81617]
[1765646251018,0.14775647,90167.0,90166.0,0.45537]
[1765646251218,0.14675647,90167.0,90166.0,0.45537]
[1765646251419,0.14775647,90167.0,90166.0,0.14187]
[1765646252822,0.14775647,90167.0,90166.0,0.53197]
[1765646253121,0.14775647,90167.0,90166.0,0.14187]
[1765646261838,0.14775647,90167.0,90166.0,0.48297]
[1765646262139,0.14775647,90167.0,90166.0,0.48047]
[1765646262540,0.14775647,90167.0,90166.0,0.14187]
[1765646263040,0.14775647,90167.0,90166.0,0.49817]
[1765646263336,0.14775647,90167.0,90166.0,0.49007]
[1765646263543,0.14775647,90167.0,90166.0,0.14187]
[1765646264144,0.14775647,90167.0,90166.0,0.48897]
[1765646264542,0.14775647,90167.0,90166.0,0.48957]
[1765646264745,0.14775647,90167.0,90166.0,0.14187]
[1765646265340,0.14775647,90167.0,90166.0,0.48157]
[1765646265546,0.14775647,90167.0,90166.0,0.50257]
[1765646265848,0.14775647,90167.0,90166.0,0.14187]
[1765646270650,0.13034,90166.0,90165.0,0.3337]
[1765646270851,0.06244,90152.0,90148.0,0.00016647]
[1765646271156,0.13034,90152.0,90151.0,0.49369]
[1765646271454,0.13034,90152.0,90151.0,0.99049]
[1765646271951,0.13034,90152.0,90151.0,0.62969]
[1765646272144,0.21021272,90152.0,90151.0,0.63169]
[1765646272345,0.13034,90152.0,90151.0,0.63169]
[1765646273052,0.13034,90152.0,90151.0,0.63369]
[1765646273255,0.13599818,90152.0,90151.0,0.63369]
[1765646278162,0.13599818,90152.0,90151.0,0.62969]
[1765646278962,0.13699818,90152.0,90151.0,0.62969]
[1765646279162,0.13799818,90152.0,90151.0,0.62969]
[1765646280762,0.00765818,90152.0,90151.0,0.62969]
[1765646281764,0.00665818,90152.0,90151.0,0.62969]
[1765646282060,0.00665818,90152.0,90151.0,0.99049]
[1765646282652,0.00565818,90152.0,90151.0,0.99049]
[1765646282854,0.5261,90158.0,90157.0,0.1209]
[1765646283463,0.53166189,90158.0,90157.0,0.1209]
[1765646284162,0.12766,90157.0,90156.0,0.464]
[1765646284353,0.48846,90157.0,90156.0,0.464]
[1765646284554,0.48846,90157.0,90148.0,0.00016647]
[1765646284555,0.12766,90149.0,90148.0,0.12106647]
[1765646284950,0.48846,90149.0,90148.0,0.12106647]
[1765646285348,0.56814867,90149.0,90148.0,0.12106647]
[1765646285555,0.48846,90149.0,90148.0,0.12106647]
[1765646286969,0.48946,90149.0,90148.0,0.12106647]
[1765646291569,0.48946,90149.0,90148.0,0.45366647]
[1765646293572,0.12866,90149.0,90148.0,0.45366647]
[1765646298166,0.001,90149.0,90148.0,0.82555837]
[1765646298469,0.06474,90149.0,90148.0,0.81446647]
[1765646298775,0.12866,90149.0,90148.0,0.81446647]
[1765646299476,0.20734867,90149.0,90148.0,0.81446647]
[1765646299877,0.20734867,90149.0,90148.0,0.45366647]
[1765646300375,0.12766,90149.0,90148.0,0.45366647]
[1765646307574,0.48846,90149.0,90148.0,0.45366647]
[1765646307779,1.1191,90149.0,90148.0,0.45366647]
[1765646310281,1.1191,90149.0,90148.0,0.33276647]
[1765646310674,1.1191,90149.0,90148.0,0.05651647]
[1765646312487,1.1191,90149.0,90148.0,0.00016647]
[1765646313483,1.1191,90149.0,90148.0,0.05651647]
[1765646313683,1.1191,90149.0,90148.0,0.00016647]
[1765646316988,1.18134,90149.0,90148.0,0.00016647]
[1765646317289,1.18134,90149.0,90148.0,0.05651647]
[1765646318391,1.18134,90149.0,90148.0,0.00016647]
[1765646321591,1.18134,90149.0,90140.0,0.3892]
[1765646321796,0.50379,90141.0,90140.0,0.34549906]
[1765646321980,0.50379,90141.0,90124.0,0.47279]
[1765646321981,0.11309,90125.0,90124.0,0.47279]
[1765646322181,0.11309,90125.0,90124.0,0.05635]
[1765646322690,0.11309,90125.0,90124.0,0.11199]
[1765646324193,0.11309,90125.0,90124.0,0.11499]
[1765646324985,0.11309,90125.0,90124.0,0.11799]
[1765646325380,0.11873491,90125.0,90124.0,0.11799]
[1765646328890,0.00564491,90125.0,90124.0,0.11799]
[1765646329091,0.47389,90128.0,90127.0,0.11199]
[1765646329699,0.47940605,90128.0,90127.0,0.11199]
[1765646331099,0.47940605,90128.0,90127.0,0.11399]
[1765646332297,0.47940605,90128.0,90127.0,0.11699]
[1765646338991,0.11860605,90128.0,90127.0,0.11699]
[1765646342699,0.11860605,90128.0,90127.0,0.005]
[1765646343112,0.11860605,90128.0,90127.0,0.06085]
[1765646343906,0.11860605,90128.0,90127.0,0.11451]
[1765646348414,0.1984605,90128.0,90127.0,0.11451]
[1765646350216,0.11860605,90128.0,90127.0,0.11451]
[1765646353337,0.11860605,90128.0,90127.0,0.005]
[1765646354433,0.21847838,90128.0,90127.0,0.005]
[1765646355224,0.11860605,90128.0,90127.0,0.005]
[1765646356034,0.11860605,90128.0,90127.0,0.06085]
[1765646356339,0.11860605,90128.0,90127.0,0.11451]
[1765646360242,0.11860605,90128.0,90127.0,0.005]
[1765646362445,0.11860605,90128.0,90127.0,0.06085]
[1765646363131,0.11860605,90128.0,90127.0,0.11109]
[1765646363946,0.81192605,90128.0,90127.0,0.11109]
[1765646366038,0.81192605,90128.0,90127.0,0.005]
[1765646370647,0.81192605,90128.0,90127.0,0.05592]
[1765646371842,0.81192605,90128.0,90127.0,0.10782]
[1765646375446,0.81184605,90128.0,90127.0,0.10782]
[1765646392449,0.81184605,90128.0,90127.0,0.005]
[1765646392962,0.81184605,90128.0,90120.0,0.1809]
[1765646392963,0.0973,90121.0,90120.0,0.1809]
[1765646393161,0.4581,90121.0,90120.0,0.1809]
[1765646393362,0.0973,90116.0,90115.0,0.05108637]
[1765646393558,0.79042,90116.0,90115.0,0.05108637]
[1765646393959,0.87026195,90116.0,90115.0,0.00016637]
[1765646394158,0.79042,90116.0,90115.0,0.00016637]
[1765646394362,0.87026195,90116.0,90115.0,0.05108637]
[1765646394650,0.87026195,90116.0,90115.0,0.00016637]
[1765646395758,0.87026195,90116.0,90115.0,0.09946637]
[1765646396255,0.79042,90116.0,90115.0,0.09946637]
[1765646399261,0.79042,90116.0,90115.0,0.00016637]
[1765646401561,0.12577,90114.0,90113.0,0.3418]
[1765646401870,0.12577,90114.0,90111.0,0.446]
[1765646401871,0.09623,90112.0,90111.0,0.49344]
[1765646402072,0.09623,90112.0,90111.0,0.42504]
[1765646402469,0.09623,90112.0,90111.0,0.04744]
[1765646403272,0.09623,90112.0,90111.0,0.39284]
[1765646404776,0.09623,90112.0,90111.0,0.44122]
[1765646405071,0.09623,90112.0,90111.0,0.44222]
[1765646406074,0.10172705,90112.0,90111.0,0.44222]
[1765646427989,0.00549705,90112.0,90111.0,0.44222]
[1765646428172,0.07976406,90113.0,90111.0,0.44222]
[1765646428173,0.48577406,90114.0,90113.0,0.09356]
[1765646428372,0.53656865,90114.0,90113.0,0.09356]
[1765646428580,0.49134865,90114.0,90113.0,0.09356]
[1765646429575,0.41158459,90114.0,90113.0,0.09356]
[1765646430691,0.45680459,90114.0,90113.0,0.09356]
[1765646431693,0.53656865,90114.0,90113.0,0.09356]
[1765646432591,0.44613865,90114.0,90113.0,0.09356]
[1765646433093,1.02962865,90114.0,90113.0,0.09356]
[1765646433287,1.02962865,90114.0,90113.0,0.42536]
[1765646433495,1.02962865,90114.0,90113.0,0.09356]
[1765646434295,0.99508459,90114.0,90113.0,0.09356]
[1765646435895,1.02236459,90114.0,90113.0,0.09356]
[1765646438801,0.99508459,90114.0,90113.0,0.09356]
[1765646439689,1.02236459,90114.0,90113.0,0.09356]
[1765646440695,1.17724459,90114.0,90113.0,0.09356]
[1765646441597,0.81644459,90114.0,90113.0,0.09356]
[1765646450508,0.74394459,90114.0,90113.0,0.09356]
[1765646450810,0.78916459,90114.0,90113.0,0.09356]
[1765646451201,0.81644459,90114.0,90113.0,0.09356]
[1765646461521,0.78916459,90114.0,90113.0,0.09356]
[1765646461905,0.81778459,90114.0,90113.0,0.09356]
[1765646496956,0.81778459,90114.0,90112.0,0.2343]
[1765646496957,0.09302,90113.0,90112.0,0.2343]
[1765646497343,0.09302,90113.0,90112.0,0.27768]
[1765646498157,0.09302,90113.0,90112.0,0.2343]
[1765646498953,0.09302,90113.0,90112.0,0.2353]
[1765646499142,0.09302,90113.0,90112.0,0.27868]
[1765646502266,0.09302,90113.0,90112.0,0.3251]
[1765646513961,0.69873459,90114.0,90113.0,0.1008962]
[1765646514667,0.74573459,90114.0,90113.0,0.1008962]
[1765646514865,0.79175459,90114.0,90113.0,0.1008962]
[1765646520571,0.81968459,90114.0,90113.0,0.0544762]
[1765646520963,0.81968459,90114.0,90113.0,0.1003162]
[1765646521675,0.81968459,90114.0,90113.0,0.08922]
[1765646522072,0.81968459,90114.0,90113.0,0.1003162]
[1765646522773,0.89952917,90114.0,90113.0,0.1003162]
[1765646523765,0.89952917,90114.0,90113.0,0.4611162]
[1765646528070,0.89952917,90114.0,90113.0,0.45002]
[1765646530979,0.81968459,90114.0,90113.0,0.45002]
[1765646535485,0.81968459,90114.0,90113.0,0.40573]
[1765646535674,0.81968459,90114.0,90113.0,0.3608]
[1765646536474,0.81968459,90114.0,90113.0,0.40573]
[1765646536672,0.81968459,90114.0,90113.0,0.3608]
[1765646538187,0.09141,90113.0,90112.0,0.27923]
[1765646540191,0.09141,90113.0,90112.0,0.2343]
[1765646540388,0.09141,90113.0,90112.0,0.2353]
[1765646540590,0.09141,90113.0,90112.0,0.001]
[1765646541194,0.09141,90113.0,90112.0,0.3272]
[1765646541898,0.09141,90113.0,90112.0,0.37213]
[1765646544296,0.09141,90113.0,90112.0,0.41797]
[1765646548213,0.09141,90113.0,90112.0,0.37213]
[1765646548812,0.09141,90113.0,90112.0,0.41651]
[1765646549012,0.1912371,90113.0,90112.0,0.41651]
[1765646549612,0.09141,90113.0,90112.0,0.41651]
[1765646550417,0.09141,90113.0,90112.0,0.37213]
[1765646550610,0.09141,90113.0,90112.0,0.41651]
[1765646552718,0.1713007,90113.0,90112.0,0.41651]
[1765646552919,0.1713007,90113.0,90112.0,0.46071]
[1765646553119,0.1713007,90113.0,90112.0,0.09031]
[1765646554119,0.1713007,90113.0,90112.0,0.43361]
[1765646560221,0.09141,90113.0,90112.0,0.43361]
[1765646562023,0.1713007,90113.0,90112.0,0.43361]
[1765646569728,0.09141,90113.0,90112.0,0.43361]
[1765646572225,0.1713007,90113.0,90112.0,0.43361]
[1765646572832,0.09141,90113.0,90112.0,0.43361]
[1765646585932,0.09141,90113.0,90112.0,0.38923]
[1765646586137,0.09141,90113.0,90112.0,0.3443]
[1765646586336,0.09141,90113.0,90112.0,0.001]
[1765646591256,0.13596331,90113.0,90112.0,0.001]
[1765646592962,0.27578457,90113.0,90112.0,0.001]
[1765646593743,0.13596331,90113.0,90112.0,0.001]
[1765646594859,0.08881,90110.0,90109.0,0.09922732]
[1765646595057,0.44961,90110.0,90109.0,0.09922732]
[1765646595250,0.13311713,90103.0,90102.0,0.00016637]
[1765646595457,0.82619713,90103.0,90102.0,0.00016637]
[1765646595652,0.78189,90103.0,90102.0,0.00016637]
[1765646596050,0.82619713,90103.0,90102.0,0.00016637]
[1765646596245,0.78189,90103.0,90102.0,0.00016637]
[1765646596865,0.82598077,90103.0,90102.0,0.00016637]
[1765646597063,0.82698077,90103.0,90102.0,0.09167637]
[1765646597850,0.78289,90103.0,90102.0,0.09167637]
[1765646598050,0.82684259,90103.0,90102.0,0.09167637]
[1765646598251,0.82684259,90103.0,90102.0,0.66017637]
[1765646598456,0.82784259,90103.0,90102.0,1.06517637]
[1765646598663,0.78389,90103.0,90102.0,0.86707637]
[1765646598862,0.78389,90103.0,90102.0,0.93797637]
[1765646599057,0.78389,90103.0,90102.0,0.56757637]
[1765646599258,0.82784259,90103.0,90102.0,0.09167637]
[1765646599760,0.91762397,90103.0,90102.0,1.19297637]
[1765646600262,1.01718685,90103.0,90102.0,0.69557637]
[1765646600464,0.97323426,90103.0,90102.0,0.09167637]
[1765646600665,1.01652975,90103.0,90102.0,0.62287637]
[1765646601058,1.01652975,90103.0,90102.0,0.09167637]
[1765646601366,1.01652975,90103.0,90102.0,0.56517637]
[1765646601556,0.97323426,90103.0,90102.0,0.56517637]
[1765646601756,1.37763406,90103.0,90102.0,0.49807637]
[1765646601961,1.37763406,90103.0,90102.0,0.09167637]
[1765646602565,1.33403426,90103.0,90102.0,0.09167637]
[1765646602967,1.23447138,90103.0,90102.0,0.09167637]
[1765646603665,1.27837866,90103.0,90102.0,0.09167637]
[1765646603865,1.23447138,90103.0,90102.0,0.09167637]
[1765646604768,1.27883136,90103.0,90102.0,0.09167637]
[1765646605469,1.27909143,90103.0,90102.0,0.09167637]
[1765646605666,0.91829143,90103.0,90102.0,0.09167637]
[1765646605859,1.23447138,90103.0,90102.0,0.09167637]
[1765646607162,1.2792701,90103.0,90102.0,0.09167637]
[1765646607668,1.23447138,90103.0,90102.0,0.09167637]
[1765646608372,1.2777919,90103.0,90102.0,0.09167637]
[1765646608672,1.23447138,90103.0,90102.0,0.04568637]
[1765646608864,1.27773291,90103.0,90102.0,0.04568637]
[1765646609769,1.23447138,90103.0,90102.0,0.04568637]